[Event "Live Chess"]
[Site "Chess.com"]
[Date "2023.05.21"]
[Round "-"]
[White "chessfiction"]
[Black "LaupMiths"]
[Result "1-0"]
[WhiteElo "2346"]
[BlackElo "1815"]
[TimeControl "300"]
[EndTime "23:19:21 PDT"]
[Termination "chessfiction won by resignation"]

1. e4 {[%clk 0:04:56.8]} 1... c5 {[%clk 0:04:58.6]} 2. Nf3 {[%clk 0:04:55.2]}
2... e6 {[%clk 0:04:57.8]} 3. d4 {[%clk 0:04:55.1]} 3... cxd4 {[%clk 0:04:56.7]}
4. Nxd4 {[%clk 0:04:55]} 4... Nc6 {[%clk 0:04:54.4]} 5. g3 {[%clk 0:04:54.4]}
5... a6 {[%clk 0:04:51.1]} 6. Bg2 {[%clk 0:04:53.6]} 6... Bc5 {[%clk 0:04:47.6]}
7. Nb3 {[%clk 0:04:51.4]} 7... Be7 {[%clk 0:04:45.8]} 8. O-O {[%clk 0:04:51]}
8... d6 {[%clk 0:04:43]} 9. c4 {[%clk 0:04:50.5]} 9... Nf6 {[%clk 0:04:41.4]}
10. Nc3 {[%clk 0:04:49.9]} 10... O-O {[%clk 0:04:40.2]} 11. Be3 {[%clk
0:04:48.9]} 11... Qc7 {[%clk 0:04:38.3]} 12. Qe2 {[%clk 0:04:47.2]} 12... b6
{[%clk 0:04:36.3]} 13. Rac1 {[%clk 0:04:42.4]} 13... Bb7 {[%clk 0:04:35]} 14.
Nd5 {[%clk 0:04:41.5]} 14... exd5 {[%clk 0:04:33.2]} 15. cxd5 {[%clk 0:04:41.4]}
15... Qd7 {[%clk 0:04:29.2]} 16. dxc6 {[%clk 0:04:31.3]} 16... Bxc6 {[%clk
0:04:29.1]} 17. Rfd1 {[%clk 0:04:21.1]} 17... Qb7 {[%clk 0:04:25.2]} 18. Rxc6
{[%clk 0:04:14.9]} 18... Qxc6 {[%clk 0:04:23.4]} 19. e5 {[%clk 0:04:14.4]} 19...
Ne4 {[%clk 0:04:09.8]} 20. exd6 {[%clk 0:04:08.9]} 20... Bxd6 {[%clk 0:04:08]}
21. Bxe4 {[%clk 0:04:07.1]} 21... Qxe4 {[%clk 0:04:00.9]} 22. Rxd6 {[%clk
0:04:06.6]} 22... Rfd8 {[%clk 0:03:54.6]} 23. Nd2 {[%clk 0:03:59]} 23... Qc2
{[%clk 0:03:43.1]} 24. Rxb6 {[%clk 0:03:57]} 24... Rac8 {[%clk 0:03:36]} 25.
Qxa6 {[%clk 0:03:52.6]} 25... Ra8 {[%clk 0:03:24.3]} 26. Qe2 {[%clk 0:03:34.5]}
26... Rxa2 {[%clk 0:03:19.4]} 27. Bg5 {[%clk 0:03:31.6]} 27... Rc8 {[%clk
0:03:14.6]} 28. Qg4 {[%clk 0:03:11.5]} 28... Ra1+ {[%clk 0:02:49.6]} 29. Kg2
{[%clk 0:03:04.2]} 29... Qc1 {[%clk 0:02:46.5]} 30. Nb1 {[%clk 0:02:55.6]} 30...
Qc7 {[%clk 0:02:29]} 31. Nc3 {[%clk 0:02:42.1]} 31... Ra5 {[%clk 0:02:10]} 32.
Bf6 {[%clk 0:02:29]} 32... g6 {[%clk 0:02:08.3]} 33. Rb4 {[%clk 0:02:07.9]}
33... Re8 {[%clk 0:02:00.7]} 34. Re4 {[%clk 0:02:04.7]} 34... Qc6 {[%clk
0:01:54.2]} 35. Qf3 {[%clk 0:02:00.1]} 35... Rxe4 {[%clk 0:01:43.9]} 36. Nxe4
{[%clk 0:01:56.7]} 36... Rf5 {[%clk 0:01:41.8]} 37. Qd3 {[%clk 0:01:46]} 37...
Rxf6 {[%clk 0:01:32.6]} 38. Qd8+ {[%clk 0:01:43.6]} 38... Kg7 {[%clk 0:01:31.4]}
39. Qxf6+ {[%clk 0:01:43.1]} 39... Qxf6 {[%clk 0:01:30.1]} 40. Nxf6 {[%clk
0:01:43]} 40... Kxf6 {[%clk 0:01:29.5]} 41. Kf3 {[%clk 0:01:42.6]} 41... Ke5
{[%clk 0:01:29]} 42. b4 {[%clk 0:01:40]} 42... Kd5 {[%clk 0:01:27.9]} 43. Kf4
{[%clk 0:01:39.3]} 43... Kc4 {[%clk 0:01:27]} 44. Kg5 {[%clk 0:01:38]} 44...
Kxb4 {[%clk 0:01:25]} 45. Kf6 {[%clk 0:01:37.2]} 45... Kc4 {[%clk 0:01:22.8]}
46. Kxf7 {[%clk 0:01:36.8]} 46... Kd4 {[%clk 0:01:22.2]} 47. Kg7 {[%clk
0:01:36.3]} 47... g5 {[%clk 0:01:21]} 48. Kxh7 {[%clk 0:01:35.5]} 48... Ke4
{[%clk 0:01:20.6]} 49. Kg6 {[%clk 0:01:34.9]} 49... g4 {[%clk 0:01:19.9]} 50.
Kg5 {[%clk 0:01:34]} 50... Kf3 {[%clk 0:01:19.7]} 51. Kf5 {[%clk 0:01:33.3]}
51... Kxf2 {[%clk 0:01:18.2]} 52. Kxg4 {[%clk 0:01:32.4]} 1-0

[Event "Live Chess"]
[Site "Chess.com"]
[Date "2023.05.21"]
[Round "-"]
[White "mirandaasilva"]
[Black "Shepherds_Pie"]
[Result "0-1"]
[WhiteElo "1634"]
[BlackElo "1911"]
[TimeControl "300"]
[EndTime "23:19:27 PDT"]
[Termination "Shepherds_Pie won by checkmate"]

1. g3 {[%clk 0:04:58.4]} 1... Nf6 {[%clk 0:04:58.2]} 2. Bg2 {[%clk 0:04:57.1]}
2... g6 {[%clk 0:04:57.1]} 3. d4 {[%clk 0:04:55.5]} 3... Bg7 {[%clk 0:04:55.8]}
4. c4 {[%clk 0:04:55.4]} 4... O-O {[%clk 0:04:54.7]} 5. Nc3 {[%clk 0:04:54.9]}
5... d6 {[%clk 0:04:53.3]} 6. Nf3 {[%clk 0:04:53.4]} 6... c5 {[%clk 0:04:52.2]}
7. d5 {[%clk 0:04:51.1]} 7... e6 {[%clk 0:04:49.9]} 8. dxe6 {[%clk 0:04:49.4]}
8... Bxe6 {[%clk 0:04:48.2]} 9. O-O {[%clk 0:04:49.3]} 9... Bxc4 {[%clk
0:04:46.8]} 10. b3 {[%clk 0:04:43.7]} 10... Be6 {[%clk 0:04:44.1]} 11. Bb2
{[%clk 0:04:42.2]} 11... Nc6 {[%clk 0:04:40.1]} 12. Ng5 {[%clk 0:04:41.6]} 12...
Bg4 {[%clk 0:04:29.2]} 13. h3 {[%clk 0:04:38.1]} 13... Bf5 {[%clk 0:04:26.8]}
14. g4 {[%clk 0:04:33.8]} 14... Be6 {[%clk 0:04:22.6]} 15. Nce4 {[%clk
0:04:28.1]} 15... Nd4 {[%clk 0:04:10.2]} 16. Nxe6 {[%clk 0:04:18.7]} 16... fxe6
{[%clk 0:04:02.4]} 17. Bxd4 {[%clk 0:04:07.9]} 17... cxd4 {[%clk 0:04:01]} 18.
Qxd4 {[%clk 0:04:07.8]} 18... d5 {[%clk 0:03:59.8]} 19. Nc5 {[%clk 0:04:01]}
19... Qe7 {[%clk 0:03:51.9]} 20. Qe3 {[%clk 0:03:42.3]} 20... e5 {[%clk
0:03:40.3]} 21. g5 {[%clk 0:03:33.2]} 21... Ne4 {[%clk 0:03:23.2]} 22. Nxe4
{[%clk 0:03:30.1]} 22... dxe4 {[%clk 0:03:21.9]} 23. Bxe4 {[%clk 0:03:19.8]}
23... Rf4 {[%clk 0:03:20.3]} 24. Bd5+ {[%clk 0:03:01.9]} 24... Kh8 {[%clk
0:03:18.3]} 25. Qg3 {[%clk 0:02:57.9]} 25... Rd8 {[%clk 0:03:12.5]} 26. e4
{[%clk 0:02:56]} 26... b6 {[%clk 0:02:57.9]} 27. Rac1 {[%clk 0:02:46.1]} 27...
Rdf8 {[%clk 0:02:55.5]} 28. Rc6 {[%clk 0:02:32.9]} 28... Qb4 {[%clk 0:02:52.6]}
29. Rc7 {[%clk 0:01:32.9]} 29... Qd2 {[%clk 0:02:49.6]} 30. Qc3 {[%clk
0:01:01.5]} 30... Qd4 {[%clk 0:02:20.7]} 31. Qxd4 {[%clk 0:00:37.9]} 31... exd4
{[%clk 0:02:18.7]} 32. Rxa7 {[%clk 0:00:19.4]} 32... d3 {[%clk 0:02:16.6]} 33.
Rxg7 {[%clk 0:00:17.9]} 33... Kxg7 {[%clk 0:02:14.6]} 34. Bc4 {[%clk 0:00:16.6]}
34... d2 {[%clk 0:02:12.3]} 35. Be2 {[%clk 0:00:15.3]} 35... Rxe4 {[%clk
0:02:10.4]} 36. Bd3 {[%clk 0:00:14.5]} 36... Rd4 {[%clk 0:02:08.8]} 37. Bc2
{[%clk 0:00:13.6]} 37... Rc8 {[%clk 0:02:06.7]} 38. Bd1 {[%clk 0:00:13.2]} 38...
Rc1 {[%clk 0:02:05.5]} 39. Be2 {[%clk 0:00:12.5]} 39... d1=Q {[%clk 0:02:03]}
40. Bxd1 {[%clk 0:00:11.1]} 40... Rcxd1 {[%clk 0:02:02]} 41. Rxd1 {[%clk
0:00:11]} 41... Rxd1+ {[%clk 0:02:00.9]} 42. Kg2 {[%clk 0:00:10.7]} 42... Rd2
{[%clk 0:02:00.8]} 43. a4 {[%clk 0:00:10.4]} 43... Rb2 {[%clk 0:01:58.9]} 44. b4
{[%clk 0:00:10.3]} 44... Rxb4 {[%clk 0:01:57.7]} 45. a5 {[%clk 0:00:10.2]} 45...
bxa5 {[%clk 0:01:56.6]} 46. h4 {[%clk 0:00:10.1]} 46... h5 {[%clk 0:01:55.3]}
47. Kg3 {[%clk 0:00:10]} 47... Kf7 {[%clk 0:01:54.1]} 48. f4 {[%clk 0:00:09.4]}
48... Ke6 {[%clk 0:01:53]} 49. Kf3 {[%clk 0:00:09.3]} 49... Kf5 {[%clk
0:01:51.7]} 50. Ke3 {[%clk 0:00:09.2]} 50... a4 {[%clk 0:01:50.1]} 51. Kd3
{[%clk 0:00:08.8]} 51... a3 {[%clk 0:01:49.1]} 52. Kc3 {[%clk 0:00:08.7]} 52...
Rb8 {[%clk 0:01:47.9]} 53. Kd3 {[%clk 0:00:08.2]} 53... a2 {[%clk 0:01:46.9]}
54. Kd2 {[%clk 0:00:08.1]} 54... a1=Q {[%clk 0:01:45.1]} 55. Ke2 {[%clk
0:00:07.9]} 55... Rb3 {[%clk 0:01:40.1]} 56. Kd2 {[%clk 0:00:06.7]} 56... Qa2+
{[%clk 0:01:39.1]} 57. Kd1 {[%clk 0:00:06.6]} 57... Rb1# {[%clk 0:01:38.5]} 0-1

[Event "Live Chess"]
[Site "Chess.com"]
[Date "2023.05.21"]
[Round "-"]
[White "Crowded_House"]
[Black "AttackingSnowLeopard"]
[Result "0-1"]
[WhiteElo "1698"]
[BlackElo "2137"]
[TimeControl "300"]
[EndTime "23:20:06 PDT"]
[Termination "AttackingSnowLeopard won by resignation"]

1. d4 {[%clk 0:04:58.6]} 1... d5 {[%clk 0:04:58.3]} 2. Bg5 {[%clk 0:04:57.8]}
2... h6 {[%clk 0:04:54.5]} 3. Bh4 {[%clk 0:04:55.7]} 3... Nf6 {[%clk 0:04:54.1]}
4. e3 {[%clk 0:04:54.4]} 4... Nbd7 {[%clk 0:04:48.9]} 5. Bd3 {[%clk 0:04:53.1]}
5... e6 {[%clk 0:04:48]} 6. Nd2 {[%clk 0:04:50.9]} 6... Bd6 {[%clk 0:04:46.6]}
7. Ngf3 {[%clk 0:04:49.6]} 7... O-O {[%clk 0:04:45.3]} 8. O-O {[%clk 0:04:47.4]}
8... e5 {[%clk 0:04:44.1]} 9. dxe5 {[%clk 0:04:45.8]} 9... Nxe5 {[%clk
0:04:42.9]} 10. Nxe5 {[%clk 0:04:43.7]} 10... Bxe5 {[%clk 0:04:40.7]} 11. c3
{[%clk 0:04:41.7]} 11... c6 {[%clk 0:04:37.2]} 12. Nf3 {[%clk 0:04:40.6]} 12...
Bg4 {[%clk 0:04:34.9]} 13. Be2 {[%clk 0:04:37.7]} 13... Bd6 {[%clk 0:04:32.1]}
14. h3 {[%clk 0:04:33.5]} 14... Bf5 {[%clk 0:04:29.7]} 15. Bd3 {[%clk
0:04:29.2]} 15... Bxd3 {[%clk 0:04:27.6]} 16. Qxd3 {[%clk 0:04:28]} 16... Qe7
{[%clk 0:04:26.2]} 17. Rfe1 {[%clk 0:04:21.8]} 17... Qe4 {[%clk 0:04:10.1]} 18.
Rad1 {[%clk 0:04:01.9]} 18... Qxd3 {[%clk 0:04:08.2]} 19. Rxd3 {[%clk
0:04:00.6]} 19... Ne4 {[%clk 0:04:07.8]} 20. Nd2 {[%clk 0:03:53]} 20... Nc5
{[%clk 0:03:55.6]} 21. Rd4 {[%clk 0:03:46.2]} 21... Be5 {[%clk 0:03:27.5]} 22.
Rg4 {[%clk 0:03:32.7]} 22... h5 {[%clk 0:03:22.5]} 23. Rg5 {[%clk 0:03:15.1]}
23... f6 {[%clk 0:03:21.4]} 24. Rf5 {[%clk 0:02:57.7]} 24... g6 {[%clk
0:03:19.6]} 25. Rxe5 {[%clk 0:02:56.8]} 25... fxe5 {[%clk 0:03:17]} 26. Be7
{[%clk 0:02:53.3]} 26... Nd3 {[%clk 0:03:16.6]} 27. Rb1 {[%clk 0:02:39.5]} 27...
Rf7 {[%clk 0:03:14.4]} 28. Bg5 {[%clk 0:02:31.2]} 28... Rxf2 {[%clk 0:03:11.8]}
29. Nf3 {[%clk 0:02:20.4]} 29... Rxb2 {[%clk 0:03:09]} 30. Rxb2 {[%clk 0:02:18]}
30... Nxb2 {[%clk 0:03:07.7]} 31. Nxe5 {[%clk 0:02:17]} 31... Kg7 {[%clk
0:03:04.1]} 32. Nd7 {[%clk 0:02:10.5]} 32... Nc4 {[%clk 0:02:59.7]} 33. Nc5
{[%clk 0:02:08]} 33... b6 {[%clk 0:02:57.8]} 34. Ne6+ {[%clk 0:02:06.4]} 34...
Kf7 {[%clk 0:02:56.7]} 35. Nc7 {[%clk 0:01:58]} 35... Rc8 {[%clk 0:02:50.4]} 36.
Na6 {[%clk 0:01:55.2]} 36... c5 {[%clk 0:02:47.7]} 37. Bf4 {[%clk 0:01:43.5]}
37... Ke7 {[%clk 0:02:42.2]} 38. Kf2 {[%clk 0:01:40.1]} 38... Kd7 {[%clk
0:02:40.4]} 39. Kf3 {[%clk 0:01:32.7]} 39... Nd2+ {[%clk 0:02:35]} 40. Ke2
{[%clk 0:01:30.1]} 40... Ne4 {[%clk 0:02:34.4]} 41. Kd3 {[%clk 0:01:20]} 41...
g5 {[%clk 0:02:16.2]} 42. Bh2 {[%clk 0:01:10.8]} 42... g4 {[%clk 0:02:14.9]} 43.
hxg4 {[%clk 0:01:09.5]} 43... hxg4 {[%clk 0:02:14.4]} 44. Ke2 {[%clk 0:01:08.4]}
44... g3 {[%clk 0:02:12.6]} 45. Bg1 {[%clk 0:01:06.6]} 45... Rf8 {[%clk
0:02:09.6]} 46. a3 {[%clk 0:00:45.7]} 46... Kc6 {[%clk 0:02:08.1]} 47. Nb4+
{[%clk 0:00:43.4]} 47... cxb4 {[%clk 0:02:06.7]} 48. cxb4 {[%clk 0:00:42.6]}
48... Kb5 {[%clk 0:02:05]} 49. Kd3 {[%clk 0:00:40]} 49... Rf1 {[%clk 0:02:02.3]}
50. Kd4 {[%clk 0:00:39.4]} 50... Rd1+ {[%clk 0:01:59.9]} 0-1

[Event "Live Chess"]
[Site "Chess.com"]
[Date "2023.05.21"]
[Round "-"]
[White "MJMykh"]
[Black "KeithArkell"]
[Result "0-1"]
[WhiteElo "987"]
[BlackElo "2562"]
[TimeControl "300"]
[EndTime "23:20:22 PDT"]
[Termination "KeithArkell won by resignation"]

1. e4 {[%clk 0:04:57.2]} 1... c6 {[%clk 0:04:58.6]} 2. Nf3 {[%clk 0:04:55.1]}
2... d5 {[%clk 0:04:57.8]} 3. exd5 {[%clk 0:04:53.7]} 3... cxd5 {[%clk
0:04:56.1]} 4. Nc3 {[%clk 0:04:52.6]} 4... Nc6 {[%clk 0:04:55.2]} 5. Bb5 {[%clk
0:04:51.2]} 5... Nf6 {[%clk 0:04:54.3]} 6. Bxc6+ {[%clk 0:04:50.4]} 6... bxc6
{[%clk 0:04:53.2]} 7. O-O {[%clk 0:04:49.7]} 7... Bg4 {[%clk 0:04:52.1]} 8. h3
{[%clk 0:04:48.3]} 8... Bh5 {[%clk 0:04:51.1]} 9. d3 {[%clk 0:04:47.4]} 9... e6
{[%clk 0:04:50.4]} 10. Bg5 {[%clk 0:04:46.1]} 10... Be7 {[%clk 0:04:49.9]} 11.
Bxf6 {[%clk 0:04:44.4]} 11... Bxf6 {[%clk 0:04:48.8]} 12. a3 {[%clk 0:04:40]}
12... Rb8 {[%clk 0:04:47.8]} 13. Rb1 {[%clk 0:04:37.9]} 13... O-O {[%clk
0:04:45.7]} 14. Kh2 {[%clk 0:04:31]} 14... Qa5 {[%clk 0:04:43]} 15. Qd2 {[%clk
0:04:26.8]} 15... Bxf3 {[%clk 0:04:37.4]} 16. gxf3 {[%clk 0:04:25.6]} 16... Rxb2
{[%clk 0:04:34.8]} 17. Rxb2 {[%clk 0:04:23.5]} 17... Bxc3 {[%clk 0:04:33.9]} 18.
Qc1 {[%clk 0:04:19.7]} 18... Bxb2 {[%clk 0:04:33.1]} 19. Qxb2 {[%clk 0:04:19]}
19... Qb6 {[%clk 0:04:26.9]} 20. Kg3 {[%clk 0:04:13.1]} 20... Qxb2 {[%clk
0:04:25.4]} 21. Rg1 {[%clk 0:04:11.9]} 21... Qf6 {[%clk 0:04:23.3]} 0-1

[Event "Live Chess"]
[Site "Chess.com"]
[Date "2023.05.21"]
[Round "-"]
[White "Ian-Morley"]
[Black "Conradical12"]
[Result "0-1"]
[WhiteElo "951"]
[BlackElo "1605"]
[TimeControl "300"]
[EndTime "23:20:23 PDT"]
[Termination "Conradical12 won by resignation"]

1. e4 {[%clk 0:04:58]} 1... e5 {[%clk 0:04:58.6]} 2. Nf3 {[%clk 0:04:56.1]} 2...
Nc6 {[%clk 0:04:58.1]} 3. Bc4 {[%clk 0:04:54]} 3... Nf6 {[%clk 0:04:57.5]} 4.
Ng5 {[%clk 0:04:52.1]} 4... d5 {[%clk 0:04:55.6]} 5. exd5 {[%clk 0:04:51.2]}
5... Na5 {[%clk 0:04:55.1]} 6. Bb5+ {[%clk 0:04:49.9]} 6... c6 {[%clk 0:04:54]}
7. dxc6 {[%clk 0:04:49]} 7... bxc6 {[%clk 0:04:53.9]} 8. Qf3 {[%clk 0:04:47.9]}
8... Be7 {[%clk 0:04:51.7]} 9. Ne4 {[%clk 0:04:32.5]} 9... O-O {[%clk
0:04:33.1]} 10. Nxf6+ {[%clk 0:04:28.9]} 10... Bxf6 {[%clk 0:04:31.9]} 11. O-O
{[%clk 0:04:02.7]} 11... Qb6 {[%clk 0:04:26.8]} 12. Bd3 {[%clk 0:03:57.7]} 12...
Ba6 {[%clk 0:04:14.1]} 13. Bxa6 {[%clk 0:03:56]} 13... Qxa6 {[%clk 0:04:12.7]}
14. Re1 {[%clk 0:03:50.8]} 14... Nb7 {[%clk 0:03:57.6]} 15. Nc3 {[%clk
0:03:47.1]} 15... Nd6 {[%clk 0:03:53.4]} 16. d3 {[%clk 0:03:44.1]} 16... e4
{[%clk 0:03:41.5]} 17. dxe4 {[%clk 0:03:39.7]} 17... Bxc3 {[%clk 0:03:39]} 18.
bxc3 {[%clk 0:03:38.4]} 18... Rfe8 {[%clk 0:03:34.4]} 19. Bf4 {[%clk 0:03:19.1]}
19... Nc4 {[%clk 0:03:16.6]} 20. h4 {[%clk 0:03:04.8]} 20... Rad8 {[%clk
0:01:03.1]} 21. Red1 {[%clk 0:02:09.1]} 21... Rxd1+ {[%clk 0:00:59.6]} 22. Rxd1
{[%clk 0:02:07.8]} 22... Qxa2 {[%clk 0:00:58.4]} 23. Bb8 {[%clk 0:02:04.6]}
23... Rxb8 {[%clk 0:00:53.3]} 24. Rd7 {[%clk 0:02:03.3]} 24... Rf8 {[%clk
0:00:39.6]} 25. Qd3 {[%clk 0:01:57.9]} 25... Ne5 {[%clk 0:00:35.6]} 0-1

[Event "Live Chess"]
[Site "Chess.com"]
[Date "2023.05.21"]
[Round "-"]
[White "Tushinskiy"]
[Black "Nazarenko_vital"]
[Result "1-0"]
[WhiteElo "2203"]
[BlackElo "1631"]
[TimeControl "300"]
[EndTime "23:20:30 PDT"]
[Termination "Tushinskiy won on time"]

1. d4 {[%clk 0:04:57.6]} 1... Nf6 {[%clk 0:04:58.4]} 2. c3 {[%clk 0:04:57.5]}
2... e6 {[%clk 0:04:55.4]} 3. Nf3 {[%clk 0:04:57.4]} 3... c5 {[%clk 0:04:54.2]}
4. Bf4 {[%clk 0:04:56.6]} 4... Nc6 {[%clk 0:04:52.3]} 5. e3 {[%clk 0:04:55.6]}
5... cxd4 {[%clk 0:04:51.3]} 6. exd4 {[%clk 0:04:55.5]} 6... a6 {[%clk
0:04:49.3]} 7. Bd3 {[%clk 0:04:54.8]} 7... b5 {[%clk 0:04:47.8]} 8. O-O {[%clk
0:04:53.8]} 8... Bb7 {[%clk 0:04:46.6]} 9. Nbd2 {[%clk 0:04:52.9]} 9... d6
{[%clk 0:04:42.9]} 10. Qe2 {[%clk 0:04:51.9]} 10... Be7 {[%clk 0:04:41.5]} 11.
Bg3 {[%clk 0:04:50.5]} 11... h6 {[%clk 0:04:28.3]} 12. Rfe1 {[%clk 0:04:47.1]}
12... Nh5 {[%clk 0:04:26.2]} 13. Rad1 {[%clk 0:04:42.1]} 13... Nxg3 {[%clk
0:04:25.1]} 14. hxg3 {[%clk 0:04:40.9]} 14... O-O {[%clk 0:04:23]} 15. Qe4
{[%clk 0:04:38.3]} 15... g6 {[%clk 0:04:14.1]} 16. Qe3 {[%clk 0:04:36.6]} 16...
Bg5 {[%clk 0:04:11.6]} 17. Nxg5 {[%clk 0:04:31.9]} 17... Qxg5 {[%clk 0:04:10]}
18. f4 {[%clk 0:04:30.9]} 18... Qd8 {[%clk 0:03:35.2]} 19. Ne4 {[%clk
0:04:23.8]} 19... Ne7 {[%clk 0:03:09.4]} 20. Qf2 {[%clk 0:04:19.4]} 20... Nf5
{[%clk 0:02:59.9]} 21. g4 {[%clk 0:04:17]} 21... Ng7 {[%clk 0:02:50.5]} 22. Qg3
{[%clk 0:04:10.4]} 22... f5 {[%clk 0:02:47.4]} 23. Nf2 {[%clk 0:04:07.3]} 23...
g5 {[%clk 0:02:18.5]} 24. gxf5 {[%clk 0:04:01.6]} 24... exf5 {[%clk 0:02:01.4]}
25. Re2 {[%clk 0:03:57.2]} 25... g4 {[%clk 0:01:46.5]} 26. Qh2 {[%clk
0:03:50.8]} 26... Qf6 {[%clk 0:01:44.1]} 27. Rde1 {[%clk 0:03:48.4]} 27... Rae8
{[%clk 0:01:38.7]} 28. g3 {[%clk 0:03:44.8]} 28... Bf3 {[%clk 0:01:30.3]} 29.
Re3 {[%clk 0:03:36]} 29... Rxe3 {[%clk 0:01:21.5]} 30. Rxe3 {[%clk 0:03:35.9]}
30... Re8 {[%clk 0:01:19.3]} 31. Rxe8+ {[%clk 0:03:34.1]} 31... Nxe8 {[%clk
0:01:18]} 32. Bf1 {[%clk 0:03:32.1]} 32... Kg7 {[%clk 0:01:13.5]} 33. Nd3 {[%clk
0:03:28.9]} 33... Qe6 {[%clk 0:01:02.5]} 34. Qd2 {[%clk 0:03:24.6]} 34... Nf6
{[%clk 0:00:56.5]} 35. Nf2 {[%clk 0:03:22.6]} 35... Ne4 {[%clk 0:00:54.3]} 36.
Nxe4 {[%clk 0:03:20.6]} 36... Qxe4 {[%clk 0:00:49.3]} 37. a4 {[%clk 0:03:17]}
37... bxa4 {[%clk 0:00:27.3]} 38. Bxa6 {[%clk 0:03:16.9]} 38... h5 {[%clk
0:00:09.3]} 39. Bd3 {[%clk 0:03:10.8]} 39... Qd5 {[%clk 0:00:02.9]} 40. Qe3
{[%clk 0:03:09.2]} 1-0

[Event "Live Chess"]
[Site "Chess.com"]
[Date "2023.05.21"]
[Round "-"]
[White "WelshTiger"]
[Black "Driftboard"]
[Result "1-0"]
[WhiteElo "2355"]
[BlackElo "755"]
[TimeControl "300"]
[EndTime "23:20:41 PDT"]
[Termination "WelshTiger won by checkmate"]

1. e4 {[%clk 0:04:59.1]} 1... e5 {[%clk 0:04:59.2]} 2. Nf3 {[%clk 0:04:57.4]}
2... Nc6 {[%clk 0:04:56.3]} 3. Bb5 {[%clk 0:04:56.3]} 3... a6 {[%clk 0:04:53.7]}
4. Ba4 {[%clk 0:04:55.6]} 4... b5 {[%clk 0:04:52.5]} 5. Bb3 {[%clk 0:04:54.6]}
5... Nf6 {[%clk 0:04:51.6]} 6. O-O {[%clk 0:04:53]} 6... Nxe4 {[%clk 0:04:50]}
7. d4 {[%clk 0:04:51.8]} 7... exd4 {[%clk 0:04:48.4]} 8. Re1 {[%clk 0:04:50.7]}
8... d5 {[%clk 0:04:43.8]} 9. Nxd4 {[%clk 0:04:49.5]} 9... Nxd4 {[%clk 0:04:42]}
10. Qxd4 {[%clk 0:04:47.4]} 10... Be6 {[%clk 0:04:40.8]} 11. Qd1 {[%clk
0:04:10.4]} 11... Bd6 {[%clk 0:04:34.9]} 12. c3 {[%clk 0:03:50]} 12... Qf6
{[%clk 0:04:31]} 13. Qe2 {[%clk 0:03:41.7]} 13... Bc5 {[%clk 0:04:25.9]} 14. Be3
{[%clk 0:03:39.7]} 14... Qf5 {[%clk 0:03:56.5]} 15. Nd2 {[%clk 0:03:33.3]} 15...
Nxd2 {[%clk 0:03:50.4]} 16. Qxd2 {[%clk 0:03:32.1]} 16... Bxe3 {[%clk 0:03:49]}
17. Rxe3 {[%clk 0:03:31.3]} 17... O-O {[%clk 0:03:44.6]} 18. Rae1 {[%clk
0:03:30.1]} 18... Rad8 {[%clk 0:03:38.2]} 19. Bc2 {[%clk 0:03:28.4]} 19... Qg5
{[%clk 0:03:28.1]} 20. Qd3 {[%clk 0:03:24.2]} 20... d4 {[%clk 0:03:10.7]} 21.
Qxh7# {[%clk 0:03:21.8]} 1-0

[Event "Live Chess"]
[Site "Chess.com"]
[Date "2023.05.21"]
[Round "-"]
[White "BillythekidFellowes"]
[Black "tpm07"]
[Result "0-1"]
[WhiteElo "2018"]
[BlackElo "1931"]
[TimeControl "300"]
[EndTime "23:20:43 PDT"]
[Termination "tpm07 won by resignation"]

1. d4 {[%clk 0:04:58.1]} 1... Nf6 {[%clk 0:04:57.6]} 2. c4 {[%clk 0:04:56.9]}
2... e6 {[%clk 0:04:54.1]} 3. Nc3 {[%clk 0:04:56.2]} 3... Bb4 {[%clk 0:04:53.1]}
4. Bg5 {[%clk 0:04:53.6]} 4... c5 {[%clk 0:04:10.9]} 5. d5 {[%clk 0:04:48.3]}
5... exd5 {[%clk 0:03:54.9]} 6. cxd5 {[%clk 0:04:48.2]} 6... d6 {[%clk
0:03:52.1]} 7. e4 {[%clk 0:04:45]} 7... O-O {[%clk 0:03:41.3]} 8. Bd3 {[%clk
0:04:42.4]} 8... Nbd7 {[%clk 0:03:38.9]} 9. Nf3 {[%clk 0:04:37.7]} 9... h6
{[%clk 0:03:38.2]} 10. Bh4 {[%clk 0:04:36.4]} 10... Qa5 {[%clk 0:03:32.4]} 11.
O-O {[%clk 0:04:34.9]} 11... Bxc3 {[%clk 0:03:29.2]} 12. bxc3 {[%clk 0:04:33.9]}
12... Qxc3 {[%clk 0:03:28.7]} 13. Rc1 {[%clk 0:04:32.8]} 13... Qa5 {[%clk
0:03:26.6]} 14. Bb1 {[%clk 0:04:29.7]} 14... Ng4 {[%clk 0:03:24]} 15. Qc2 {[%clk
0:04:26.2]} 15... Nge5 {[%clk 0:03:18.4]} 16. Nxe5 {[%clk 0:04:22.3]} 16... Nxe5
{[%clk 0:03:17.3]} 17. f4 {[%clk 0:04:21]} 17... Ng6 {[%clk 0:03:14.6]} 18. e5
{[%clk 0:04:19.2]} 18... dxe5 {[%clk 0:03:12]} 19. fxe5 {[%clk 0:04:16.5]} 19...
c4 {[%clk 0:03:07.9]} 20. Qe4 {[%clk 0:04:11.8]} 20... c3 {[%clk 0:03:02.4]} 21.
Be7 {[%clk 0:04:03.4]} 21... Re8 {[%clk 0:02:57.6]} 22. Rxf7 {[%clk 0:03:59.7]}
22... Kxf7 {[%clk 0:02:53.3]} 23. Qxg6+ {[%clk 0:03:57.1]} 23... Kxe7 {[%clk
0:02:52.5]} 24. Qd6+ {[%clk 0:03:57]} 24... Kf7 {[%clk 0:02:47.3]} 25. Bg6+
{[%clk 0:03:50.6]} 25... Kg8 {[%clk 0:02:45.1]} 26. Bxe8 {[%clk 0:03:49.3]}
26... c2 {[%clk 0:02:42.4]} 27. e6 {[%clk 0:03:39.5]} 27... Qd2 {[%clk
0:02:39.4]} 28. Qa3 {[%clk 0:03:32.4]} 28... Bxe6 {[%clk 0:02:21.4]} 29. dxe6
{[%clk 0:03:27.2]} 29... Rxe8 {[%clk 0:02:17.5]} 30. e7 {[%clk 0:03:26.6]} 30...
Rxe7 {[%clk 0:02:07.2]} 31. Qb3+ {[%clk 0:03:12.9]} 31... Kh8 {[%clk 0:02:00.2]}
0-1